bitfinex/quotes_ETHUSD_20240618
["timestamp","ask_amount","ask_price","bid_price","bid_amount"]
[1718751104929,2.87201,3481.9,3481.7,0.11318198]
[1718751105135,4.07457804,3481.9,3481.7,0.11318198]
[1718751105540,2.87201,3481.9,3481.7,0.11318198]
[1718751106037,4.07457804,3481.9,3481.7,0.11318198]
[1718751107466,1.20256804,3481.9,3481.7,2.98532198]
[1718751107768,1.20256804,3481.9,3481.8,2.87207]
[1718751108058,1.20256804,3481.9,3481.8,2.98535421]
[1718751108767,4.37508048,3482.1,3481.8,2.98535421]
[1718751108768,1.20256804,3482.0,3481.8,2.98535421]
[1718751109326,1.20256804,3481.9,3481.8,2.98535421]
[1718751109522,1.20256804,3482.0,3481.8,2.98535421]
[1718751110623,4.07447804,3482.0,3481.8,2.98535421]
[1718751111235,1.20256804,3481.9,3481.8,2.98535421]
[1718751111432,1.20256804,3482.1,3481.9,2.87199]
[1718751111659,1.20256804,3482.1,3481.8,2.87207]
[1718751111863,3.50506804,3482.2,3482.0,0.113267]
[1718751112041,3.50506804,3482.2,3481.9,0.1132756]
[1718751112241,3.50506804,3482.2,3482.1,0.11325839]
[1718751112451,3.50506804,3482.2,3482.0,2.985177]
[1718751112655,3.50506804,3482.2,3482.1,0.11325839]
[1718751113160,3.50506804,3482.2,3482.0,2.87191]
[1718751113371,1.20256804,3482.1,3482.0,2.87191]
[1718751113667,1.20256804,3482.1,3481.9,2.87197]
[1718751114150,2.87216,3481.7,3481.4,2.87234]
[1718751114361,1.20320898,3481.6,3481.2,2.87253]
[1718751114666,1.20320898,3481.5,3481.3,2.87247]
[1718751115469,1.20320898,3481.7,3481.4,2.8724]
[1718751115649,1.20320898,3481.7,3481.6,2.87224]
[1718751116065,2.4522,3481.2,3479.4,2.62305005]
[1718751116234,2.87291,3480.8,3480.4,2.87322]
[1718751116437,2.87299,3480.7,3480.4,2.87322]
[1718751116763,2.87299,3480.7,3480.4,2.87321]
[1718751117445,5.74605,3480.7,3480.4,2.87321]
[1718751117880,2.8731,3480.6,3480.3,2.8733]
[1718751118163,2.8731,3480.6,3480.4,0.11021241]
[1718751118751,2.87299,3480.7,3480.4,2.98337241]
[1718751119267,2.8729,3480.8,3480.4,2.98337241]
[1718751119268,2.87308,3480.6,3480.4,2.98337241]
[1718751119432,2.8729,3480.8,3480.4,0.11021241]
[1718751119636,2.87314,3480.6,3480.4,0.11021241]
[1718751120229,2.87298,3480.7,3480.4,2.98340241]
[1718751121438,2.87274,3481.0,3480.4,0.98323765]
[1718751121654,5.32479,3481.2,3480.9,2.87281]
[1718751121857,2.87266,3481.1,3480.9,2.87281]
[1718751122057,2.87266,3481.1,3481.0,0.11016073]
[1718751122381,2.3768,3480.5,3479.4,3.17323293]
[1718751122585,5.24995,3480.5,3480.2,2.87338]
[1718751123287,2.3768,3480.5,3479.6,2.87386]
[1718751123457,2.3768,3480.5,3480.3,2.8733]
[1718751123658,2.87301,3480.7,3480.4,2.87322]
[1718751124389,2.87307,3480.6,3480.3,2.87329]
[1718751124574,2.8729,3480.8,3480.2,2.87338]
[1718751124776,2.87299,3480.7,3480.1,2.87347]
[1718751125086,2.87316,3480.5,3480.2,2.87333]
[1718751126184,2.87306,3480.6,3480.0,2.87354]
[1718751126386,2.87316,3480.5,3480.0,2.87354]
[1718751126774,2.8734,3480.2,3480.0,2.87354]
[1718751127195,2.87333,3480.3,3480.0,2.87354]
[1718751129281,2.87333,3480.3,3479.9,2.87357]
[1718751129682,2.87333,3480.3,3480.0,2.87353]
[1718751130199,2.87333,3480.3,3480.1,0.10732845]
[1718751131668,2.87335,3480.3,3480.1,0.10732845]
[1718751131994,2.87334,3480.3,3480.1,2.98079845]
[1718751132194,3.50691854,3480.6,3480.2,2.87338]
[1718751132500,2.87317,3480.5,3480.2,2.98063983]
[1718751133063,2.87317,3480.5,3480.2,0.10731983]
[1718751133265,2.87329,3480.4,3480.2,2.98069983]
[1718751133464,2.87316,3480.5,3480.2,2.98069983]
[1718751133692,2.87307,3480.6,3480.3,2.8733]
[1718751133870,10.24291,3480.8,3480.2,0.10731983]
[1718751134069,10.24291,3480.8,3480.4,2.9804926]
[1718751134300,9.7343,3481.3,3480.4,0.58537326]
[1718751134470,2.3643,3481.7,3481.3,2.87245]
[1718751134680,2.3643,3481.7,3481.6,2.87224]
[1718751135192,2.3643,3481.7,3481.6,2.97944283]
[1718751136195,5.760082,3481.7,3481.6,0.10720283]
[1718751136398,2.8723,3481.6,3481.2,2.87254]
[1718751136989,2.8723,3481.6,3481.3,2.87248]
[1718751137189,2.3643,3481.7,3481.1,2.87262]
[1718751137405,2.3643,3481.7,3481.6,2.87224]
[1718751137566,2.87089355,3481.7,3481.6,2.87224]
[1718751140168,4.07507893,3482.0,3481.7,2.87213]
[1718751140413,3.67176893,3482.1,3481.6,2.87224]
[1718751140618,2.87193,3482.0,3481.6,2.87224]
[1718751140827,2.87193,3482.0,3481.7,2.87213]
[1718751140987,6.54359893,3482.1,3481.8,2.87199]
[1718751141186,2.9153669,3482.0,3481.8,2.87199]
[1718751141388,2.9153669,3482.0,3481.8,2.87207]
[1718751142184,5.7872869,3482.0,3481.6,2.87218]
[1718751142510,3.17325651,3481.9,3481.2,2.87256]
[1718751142707,2.87234,3481.5,3480.1,1.726]
[1718751142906,2.87234,3481.5,3480.1,4.726]
[1718751143195,4.86230648,3481.5,3481.1,2.87263]
[1718751143381,3.65913755,3481.5,3481.2,2.87253]
[1718751143580,3.65913755,3481.5,3481.2,2.97938561]
[1718751144182,2.87241,3481.4,3481.2,2.97938561]
[1718751144385,4.13266259,3481.4,3481.2,2.97938561]
[1718751144632,4.13266259,3481.4,3481.2,2.87253]
[1718751144796,1.26025259,3481.4,3481.2,2.87253]
[1718751145136,4.86229648,3481.5,3481.2,2.8725]
[1718751145483,1.98996648,3481.5,3481.3,2.979317]
[1718751145688,0.78679755,3481.5,3481.3,2.979317]
[1718751146289,1.20316893,3481.5,3481.3,2.979317]
[1718751146502,4.07541893,3481.6,3481.3,2.979317]
[1718751146786,1.20316893,3481.5,3481.3,2.979317]
[1718751147617,1.20316893,3481.4,3481.3,2.979317]
[1718751147802,1.20316893,3481.4,3481.3,0.106847]
[1718751148034,4.07548893,3481.5,3481.1,2.87258]
[1718751148355,4.84960235,3481.4,3481.1,2.87258]
[1718751148505,1.20316893,3481.3,3481.1,2.87258]
[1718751148706,1.20316893,3481.3,3481.2,0.10662017]
[1718751149327,1.20316893,3481.3,3481.2,2.97919017]
[1718751150948,1.20316893,3481.3,3481.2,0.10662017]
[1718751152157,7.18528848,3481.3,3481.2,0.10662017]
[1718751152318,8.85460955,3481.3,3481.2,0.10662017]
[1718751152507,10.35307616,3481.3,3481.2,0.10662017]
[1718751152911,2.87257,3481.2,3480.9,2.87279]
[1718751153240,1.20248649,3481.1,3480.9,2.87279]
[1718751153611,1.20248649,3481.1,3481.0,2.87273]
[1718751154032,1.20248649,3481.1,3481.0,5.74546]
[1718751154233,1.20248649,3481.2,3481.1,2.87265]
[1718751154445,2.265,3481.3,3481.2,2.87257]
[1718751154446,3.46748649,3481.3,3481.2,2.87257]
[1718751156333,2.265,3481.3,3481.2,2.87257]
[1718751156731,3.46792801,3481.3,3481.2,2.87257]
[1718751157253,1.20292801,3481.3,3481.2,5.74514]
[1718751157456,1.20292801,3481.4,3481.3,5.74498]
[1718751157661,1.20292801,3481.5,3481.4,2.8724]
[1718751158035,3.76831923,3481.6,3481.4,2.8724]
[1718751158239,1.50331923,3481.5,3481.4,2.8724]
[1718751159136,3.59134606,3481.5,3481.4,2.8724]
[1718751161042,2.08802683,3481.5,3481.4,2.8724]
[1718751161662,3.59265736,3481.5,3481.4,2.8724]
[1718751162238,3.59256298,3481.5,3481.4,2.8724]
[1718751163361,3.59256298,3481.5,3481.3,2.87247]
[1718751163575,2.00168381,3481.5,3481.3,2.87247]
[1718751163735,1.50453615,3481.5,3481.4,2.97900295]
[1718751164063,3.59254062,3481.5,3481.4,2.97900295]
[1718751164364,3.59254062,3481.5,3481.4,2.8724]
[1718751167169,3.59254062,3481.5,3481.4,5.7448]
[1718751167368,3.59256824,3481.5,3481.4,5.85141722]
[1718751167574,3.59256824,3481.5,3481.4,2.97901722]
[1718751169977,2.08800447,3481.5,3481.4,2.97901722]
[1718751171565,8.19213001,3481.5,3481.4,0.10661722]
[1718751171869,8.6892808,3481.5,3481.2,2.87256]
[1718751172061,4.67340712,3481.4,3481.2,2.87256]
[1718751172262,2.08800447,3481.3,3481.2,2.87256]
[1718751172450,2.0881292,3481.4,3481.3,2.87249]
[1718751172652,4.17630985,3481.4,3481.3,2.87249]
[1718751173884,4.17630985,3481.4,3481.2,2.87255]
[1718751174084,4.51329734,3481.5,3481.2,2.87255]
[1718751174085,2.0881277,3481.3,3481.2,2.87255]
[1718751174254,2.0881277,3481.4,3481.2,2.87255]
[1718751174464,2.0881277,3481.3,3481.2,2.87255]
[1718751174761,2.8726,3481.2,3480.4,2.87319]
[1718751175069,1.20448325,3480.9,3480.8,2.87289]
[1718751175270,2.77949281,3481.0,3480.9,2.87282]
[1718751175452,4.8677584,3481.0,3480.9,2.87282]
[1718751175651,4.37056559,3481.0,3480.9,2.87282]
[1718751179692,2.08826559,3481.0,3480.9,2.87282]
[1718751180064,2.08826559,3481.1,3480.9,2.87282]
[1718751180385,3.8979488,3481.1,3480.9,2.87282]
[1718751180550,2.08826559,3481.0,3480.9,2.87282]
[1718751181264,2.08826559,3481.0,3480.9,5.74564]
[1718751181483,2.08826559,3481.0,3480.9,5.85254635]
[1718751181856,2.08826559,3481.0,3480.9,8.72536635]
[1718751182054,3.59598169,3481.0,3480.9,1.06374298]
[1718751182351,1.20638135,3481.1,3481.0,5.74546]
[1718751182577,1.20638135,3481.2,3481.1,8.61795]
[1718751182782,1.20638135,3481.4,3481.2,2.87257]
[1718751183009,1.20638135,3481.5,3481.4,8.6172]
[1718751183502,1.20638135,3481.5,3481.4,8.72403833]
[1718751183699,3.29409305,3481.5,3481.4,8.72403833]
[1718751183852,1.20638135,3481.5,3481.4,10.00622384]
[1718751184402,1.50730841,3481.7,3481.5,8.61696]
[1718751184403,1.20638135,3481.6,3481.5,8.61696]
[1718751184688,1.20638135,3481.7,3481.6,8.61672]
[1718751185100,1.20638135,3481.8,3481.7,8.61648]
[1718751185449,1.20638135,3481.8,3481.7,8.72303574]
[1718751185918,1.50730841,3482.0,3481.8,2.87207]
[1718751186115,1.20524193,3481.9,3481.8,5.74414]
[1718751186830,1.20524193,3481.9,3481.8,8.61621]
[1718751187197,1.20467567,3482.0,3481.9,5.74398]
[1718751189488,1.20467567,3482.1,3482.0,5.74382]
[1718751189711,1.20467567,3482.1,3482.0,8.61573]
[1718751189893,1.50730841,3482.2,3482.1,8.61549]
[1718751189894,1.20467567,3482.2,3482.1,8.61549]
[1718751190423,2.2823,3482.6,3482.1,8.61549]
[1718751190424,1.20467567,3482.5,3482.4,2.87158]
[1718751191720,1.20467567,3482.6,3482.2,0.843]
[1718751191902,1.20467567,3482.7,3482.5,2.8715]
[1718751192222,2.84916755,3483.1,3482.5,2.8715]
[1718751192223,1.20467567,3482.8,3482.7,2.87133]
[1718751192724,1.20467567,3482.8,3482.7,5.84874817]
[1718751192890,1.20467567,3482.9,3482.8,5.7425]
[1718751193283,1.20467567,3483.0,3482.9,2.87117]
[1718751193736,3.55687567,3483.1,3483.0,2.87108]
[1718751193921,5.64396963,3483.1,3483.0,2.87108]
[1718751194091,3.55442257,3483.1,3483.0,2.97714237]
[1718751194828,8.57222257,3483.2,3483.1,2.871]
[1718751195445,7.37,3483.2,3483.1,2.871]
[1718751195595,1.20222257,3483.3,3483.1,2.871]
[1718751195793,3.55442257,3483.4,3483.1,2.871]
[1718751195992,1.20222257,3483.3,3483.1,2.871]
[1718751196241,2.3522,3483.4,3483.2,0.10572076]
[1718751196405,3.5167921,3483.4,3483.2,0.10572076]
[1718751196794,2.87084,3483.3,3483.2,0.10572076]
[1718751197014,2.87094,3483.2,3482.7,2.87132]
[1718751197208,4.07178083,3483.1,3482.7,2.87132]
[1718751197453,2.87107,3483.1,3482.7,2.87132]
[1718751197636,5.35276296,3483.1,3482.7,2.87132]
[1718751197947,5.22329,3483.0,3482.5,2.87143]
[1718751198116,2.87126,3482.8,3482.4,2.87156]
[1718751198311,2.87126,3482.8,3482.5,2.87148]
[1718751198514,3.57135284,3482.8,3482.3,2.8716]
[1718751198745,2.3522,3482.6,3482.3,2.87159]
[1718751199257,2.3522,3482.6,3482.3,2.8716]
[1718751199659,2.3522,3482.6,3482.4,2.87156]
[1718751199960,2.3522,3482.6,3482.3,2.87165]
[1718751200160,2.3522,3482.6,3482.1,3.71482]
[1718751200344,2.3522,3482.6,3482.3,2.87159]
[1718751200677,2.3522,3482.6,3482.4,2.87154]
[1718751204460,2.3522,3482.6,3482.5,2.8715]
[1718751204665,2.3522,3483.0,3482.7,2.8713]
[1718751204863,4.29751814,3483.0,3482.9,2.87117]
[1718751205164,2.3522,3483.0,3482.9,2.87117]
[1718751205769,9.7222,3483.3,3483.0,2.87102]
[1718751206425,9.7222,3483.3,3482.9,2.87117]
[1718751206656,2.70166808,3483.2,3482.9,2.87117]
[1718751207841,2.87092,3483.2,3483.0,0.10552415]
[1718751209739,5.742,3483.1,3483.0,0.10552415]
[1718751209962,11.0402,3483.1,3483.0,0.10552415]
[1718751210170,2.8713,3482.8,3482.4,2.87156]
[1718751210468,2.8713,3482.8,3482.5,0.10556716]
[1718751211858,2.8713,3482.8,3482.5,2.97703716]
[1718751212375,2.87124,3482.9,3482.5,2.97703716]
[1718751213539,3.73559108,3483.0,3482.5,2.97699716]
[1718751213745,6.60667108,3483.0,3482.5,2.97699716]
[1718751214967,2.87118,3482.9,3482.6,2.8714]
[1718751215287,9.0127,3482.8,3482.7,0.10554995]
[1718751215450,15.43066703,3482.8,3482.7,0.10554995]
[1718751215770,2.87157,3482.5,3482.0,2.87184]
[1718751215973,2.8716,3482.4,3482.0,2.87184]
[1718751216171,2.8716,3482.4,3482.1,0.10560158]
[1718751216535,2.87167,3482.3,3482.1,0.10560158]
[1718751216735,2.4272,3482.2,3482.1,0.10560158]
[1718751216936,5.29894,3482.2,3481.8,0.843]
[1718751217157,5.29894,3482.2,3482.1,0.10560158]
[1718751217361,5.29894,3482.2,3481.8,2.87206]
[1718751217862,5.29894,3482.2,3481.9,0.10583618]
[1718751219471,6.59262841,3482.2,3481.9,0.10583618]
[1718751221250,2.4272,3482.2,3482.0,2.87189]
[1718751221445,2.4272,3482.2,3482.0,2.97771758]
[1718751221648,5.29897,3482.2,3482.0,0.10582758]
[1718751223492,6.49934824,3482.2,3482.0,0.10582758]
[1718751224195,1.20037824,3482.1,3482.0,0.10582758]
[1718751225284,6.7991541,3482.2,3482.0,0.10582758]
[1718751225457,2.08757298,3482.1,3482.0,0.10582758]
[1718751225779,3.58775708,3482.1,3482.0,0.10582758]
[1718751226651,3.59255729,3482.1,3482.0,6.69264758]
[1718751226881,1.50498431,3482.3,3482.0,3.82073758]
[1718751227078,1.50498431,3482.4,3482.3,2.87166]
[1718751227245,2.43,3482.5,3482.3,2.87166]
[1718751227576,2.87168,3482.3,3481.9,2.87197]
[1718751227775,1.20399406,3482.1,3481.9,2.87197]
[1718751227975,1.20399406,3482.1,3482.0,2.97773758]
[1718751228273,1.50499258,3482.2,3482.0,2.97773758]
[1718751228863,13.97597934,3482.1,3482.0,0.10582758]
[1718751229039,2.87203,3481.9,3481.5,2.87231]
[1718751229239,1.20427097,3481.6,3481.4,2.87238]
[1718751230861,1.20427097,3481.6,3481.5,6.58764]
[1718751231045,1.20427097,3481.6,3481.5,9.45996]
[1718751231246,1.20427097,3482.0,3481.9,2.87199]
[1718751231580,1.20427097,3482.0,3481.9,8.61597]
[1718751232651,1.20427097,3482.0,3481.9,13.21396]
[1718751232958,1.20427097,3482.0,3481.9,14.45906224]
[1718751233158,1.20427097,3482.0,3481.9,15.30206224]
[1718751233466,1.20427097,3482.0,3481.9,14.45906224]
[1718751235200,2.42,3483.0,3482.8,2.87125]
[1718751235359,2.087058,3482.9,3482.8,2.87125]
[1718751236599,2.087058,3482.9,3482.8,2.97331915]
[1718751238300,2.087058,3482.9,3482.8,5.84456915]
[1718751238510,5.29085,3483.3,3482.9,2.87115]
[1718751238665,4.17410347,3483.2,3482.9,2.87115]
[1718751238868,4.17410347,3483.1,3483.0,0.10205194]
[1718751239188,2.0870209,3483.1,3483.0,0.10205194]
[1718751239486,2.0870209,3483.1,3482.9,2.87115]
[1718751239806,2.0870209,3483.0,3482.9,2.87115]
[1718751240177,2.42,3483.3,3483.0,2.87101]
[1718751240382,4.17401506,3483.2,3483.1,0.10204334]
[1718751240891,4.17401506,3483.2,3483.1,2.97304334]
[1718751241078,2.08701337,3483.2,3483.1,2.97304334]
[1718751241260,4.17398441,3483.2,3483.1,2.97304334]
[1718751243186,4.17398441,3483.2,3483.1,0.10204334]
[1718751243372,4.17398441,3483.2,3482.8,2.87118]
[1718751243722,2.08701337,3483.1,3482.9,2.97306064]
[1718751244226,2.42,3483.3,3483.0,2.87101]
[1718751244515,4.17398659,3483.2,3483.0,2.97290204]
[1718751244808,2.08697984,3483.1,3483.0,2.97290204]
[1718751244983,2.08697984,3483.2,3483.0,2.97290204]
[1718751245306,2.08697984,3483.1,3483.0,2.97290204]
[1718751245610,2.08697984,3483.2,3483.0,2.97290204]
[1718751245808,2.08697984,3483.2,3483.0,2.97294204]
[1718751246187,2.871,3483.1,3483.0,0.10189204]
[1718751246487,7.41397928,3483.1,3482.7,2.87131]
[1718751246699,3.2399226,3483.1,3483.0,0.10189204]
[1718751246898,7.41400227,3483.1,3482.7,2.87131]
[1718751247121,3.2399226,3483.1,3483.0,0.10189204]
[1718751247314,7.41400148,3483.1,3482.7,2.87131]
[1718751247516,3.2399226,3483.1,3483.0,0.10189204]
[1718751247823,2.8711,3483.0,3482.7,2.87131]
[1718751247990,2.87134,3482.7,3482.3,2.87164]
[1718751248179,1.20367871,3482.7,3482.5,2.87149]
[1718751248614,1.20367871,3482.7,3482.1,2.8718]
[1718751248615,2.3801,3482.6,3482.1,2.8718]
[1718751248913,2.3801,3482.6,3481.9,2.87199]
[1718751248914,1.05987168,3482.4,3482.3,2.87166]
[1718751249089,6.7564296,3482.6,3482.3,2.87166]
[1718751249291,4.95888293,3482.5,3482.2,2.87168]
[1718751249481,2.87158,3482.4,3481.9,2.87198]
[1718751249816,4.3763496,3482.5,3481.9,2.87193]
[1718751250019,4.3483496,3482.5,3482.0,2.87185]
[1718751250180,1.4768396,3482.5,3482.1,2.87182]
[1718751251836,2.87158,3482.4,3482.1,2.87182]
[1718751252409,2.87158,3482.4,3481.9,2.87198]
[1718751252410,2.87158,3482.4,3482.0,2.87189]
[1718751252779,2.87158,3482.4,3482.1,2.87181]
[1718751253228,2.87158,3482.4,3482.2,0.10196087]
[1718751253417,2.87158,3482.4,3482.0,2.87189]
[1718751253618,2.87158,3482.4,3482.3,0.10195226]
[1718751253931,4.95895654,3482.4,3482.0,3.71389]
[1718751254083,2.87158,3482.4,3482.3,0.10195226]
[1718751254281,4.95895428,3482.4,3482.1,2.87181]
[1718751254503,2.87158,3482.4,3482.3,0.10195226]
[1718751254697,4.9589543,3482.4,3482.1,2.87181]
[1718751254895,2.87158,3482.4,3482.3,0.10195226]
[1718751255118,4.95895425,3482.4,3482.1,2.87181]
[1718751255418,2.08744102,3482.3,3482.2,3.71374]
[1718751255587,2.3801,3482.6,3482.5,2.8715]
[1718751255785,4.46745163,3482.6,3482.5,2.8715]
[1718751255983,6.55480367,3482.6,3482.5,2.8715]
[1718751256194,7.33887163,3482.6,3482.2,2.87169]
[1718751256385,2.08735163,3482.5,3482.2,2.87169]
[1718751256723,4.95885163,3482.5,3482.2,3.71369]
[1718751257023,1.20407003,3482.3,3482.2,3.71369]
[1718751259217,1.20407003,3482.3,3482.2,2.87169]
[1718751259431,1.20407003,3482.3,3482.2,3.71369]
[1718751260225,1.20407003,3482.3,3482.2,2.87169]
[1718751260431,1.20407003,3482.3,3482.2,3.71369]
[1718751260926,1.20407003,3482.3,3482.2,3.8158783]
[1718751263115,2.87166,3482.3,3482.2,0.1021883]
[1718751263297,2.87166,3482.3,3482.0,3.71387]
[1718751263622,1.20425043,3482.2,3482.0,3.71387]
[1718751268312,1.20425043,3482.2,3482.1,0.10219691]
[1718751268513,3.68465043,3482.2,3482.1,0.10219691]
[1718751269508,3.68465043,3482.2,3482.1,2.97402691]
[1718751270430,2.4804,3482.2,3482.1,2.97402691]
[1718751270633,3.68504677,3482.2,3482.1,2.97402691]
[1718751271731,1.20464677,3482.2,3482.1,5.84585691]
[1718751272058,1.20464677,3482.2,3482.1,6.8018296]
[1718751272197,1.20464677,3482.2,3482.1,9.6736596]
[1718751272393,1.20464677,3482.4,3482.3,8.61498]
[1718751272639,1.20464677,3482.5,3482.4,8.61474]
[1718751272795,1.20464677,3482.5,3482.4,10.50823096]
[1718751272999,1.20464356,3482.6,3482.5,5.743]
[1718751273204,1.50558982,3482.7,3482.6,2.87141]
[1718751273518,3.59276127,3482.7,3482.6,5.84504141]
[1718751274807,16.07627301,3482.7,3482.6,0.10222141]
[1718751275007,17.15495297,3482.7,3482.6,0.10222141]
[1718751275207,2.4284,3482.2,3481.8,2.87207]
[1718751275407,3.59369076,3482.1,3481.9,2.87197]
[1718751275633,5.30014,3482.2,3481.9,2.87197]
[1718751275634,1.50651931,3482.0,3481.9,2.97071675]
[1718751275896,1.50651931,3482.0,3481.8,3.71405]
[1718751275897,2.08759937,3482.0,3481.8,3.71405]
[1718751276158,3.36888707,3482.1,3481.9,0.09874675]
[1718751276329,4.17524116,3482.0,3481.9,0.09874675]
[1718751278423,4.17524116,3482.0,3481.7,3.71415]
[1718751278627,1.50619497,3481.8,3481.7,3.71415]
[1718751278850,3.59375516,3481.8,3481.7,3.71415]
[1718751279333,3.59373717,3481.8,3481.7,3.71415]
[1718751279769,2.08756019,3481.8,3481.7,3.71415]
[1718751280229,1.50602693,3481.9,3481.7,3.71415]
[1718751280570,2.4284,3481.7,3481.5,0.842]
[1718751280737,1.20472813,3481.6,3481.5,3.71429]
[1718751281971,6.80631027,3481.7,3481.4,2.87238]
[1718751282136,1.20462955,3481.5,3481.2,2.87255]
[1718751282336,1.20462955,3481.4,3481.2,3.71455]
[1718751282959,1.20462955,3481.4,3481.2,2.87255]
[1718751283283,1.20462955,3481.4,3481.3,0.09915736]
[1718751283639,1.20462955,3481.4,3481.2,2.87255]
[1718751283974,1.20462955,3481.4,3481.3,0.09915736]
[1718751284283,4.07702955,3481.4,3481.0,2.87272]
[1718751284460,4.07702955,3481.4,3481.2,0.842]
[1718751284768,1.20462955,3481.4,3481.3,0.09915736]
[1718751285141,1.20462955,3481.4,3481.2,0.842]
[1718751285442,1.20462955,3481.4,3481.3,0.09915736]
[1718751285844,1.20462955,3481.4,3481.2,3.71455]
[1718751286042,3.68532955,3481.4,3481.3,0.09925334]
[1718751286241,3.68532955,3481.4,3481.1,2.87263]
[1718751286641,3.68532955,3481.4,3481.2,0.09926551]
[1718751287547,3.68532955,3481.4,3481.2,2.97182551]
[1718751287743,3.68532955,3481.4,3481.3,2.87249]
[1718751287975,3.68532955,3481.4,3481.3,2.9717469]
[1718751288179,3.68532955,3481.4,3481.3,0.0992569]
[1718751288583,3.68532955,3481.4,3481.3,2.87249]
[1718751288782,3.68532955,3481.4,3481.3,2.9717469]
[1718751289753,3.68532955,3481.4,3481.3,0.0992569]
[1718751289954,3.68532955,3481.4,3481.2,2.87254]
[1718751290190,3.68532955,3481.4,3481.3,0.09942753]
[1718751290685,6.07333549,3481.4,3481.2,2.87254]
[1718751290894,2.4807,3481.4,3481.3,0.09944531]
[1718751291191,4.56877822,3481.4,3481.2,2.87254]
[1718751291495,4.56877822,3481.4,3481.3,0.09944531]
[1718751291496,3.98519695,3481.4,3481.3,0.09944531]
[1718751291664,6.07327632,3481.4,3481.3,0.09944531]
[1718751292171,6.07327632,3481.4,3481.2,2.87254]
[1718751292374,6.07327632,3481.4,3481.3,0.09944531]
[1718751292375,3.98519695,3481.4,3481.3,0.09944531]
[1718751292588,6.07327602,3481.4,3481.2,2.87254]
[1718751292788,3.98519695,3481.4,3481.3,0.09944531]
[1718751292991,6.07327588,3481.4,3481.3,0.09944531]
[1718751293996,6.07327588,3481.4,3481.2,2.87254]
[1718751294173,3.98519695,3481.4,3481.3,0.09951287]
[1718751294357,6.07327438,3481.4,3481.2,2.87254]
[1718751294556,3.98519695,3481.4,3481.3,0.09951287]
[1718751294759,6.07327522,3481.4,3481.2,2.87254]
[1718751294956,3.98519695,3481.4,3481.3,0.09951287]
[1718751295171,6.07326208,3481.4,3481.2,2.87254]
[1718751295391,1.20352642,3481.3,3481.2,2.87254]
[1718751295906,1.20352642,3481.3,3481.1,2.87263]
[1718751298200,1.20352642,3481.3,3481.2,0.09956059]
[1718751298883,6.85725499,3481.4,3481.2,0.09956059]
[1718751300078,5.74498,3481.3,3481.2,0.09956059]
[1718751300284,2.8727,3481.1,3480.7,2.87297]
[1718751300482,4.07576796,3481.1,3480.8,0.09974081]
[1718751300904,2.87301,3480.7,3480.2,2.87332]
[1718751301079,2.87306,3480.6,3480.3,2.8733]
[1718751302602,3.60516796,3480.8,3480.3,2.87323]
[1718751302818,5.27502,3480.8,3480.5,2.87312]
[1718751302971,6.47808796,3480.8,3480.5,2.87312]
[1718751303378,2.873,3480.7,3480.4,2.87323]
[1718751303671,6.47806796,3480.8,3480.4,2.87323]
[1718751304373,1.20306796,3480.8,3480.4,2.87323]
[1718751304563,1.20306796,3480.9,3480.8,5.7458]
[1718751304768,7.37,3481.1,3481.0,2.87273]
[1718751305006,3.60516796,3481.5,3481.2,2.87249]
[1718751305179,3.60516796,3481.5,3481.3,2.87248]
[1718751305382,3.60516796,3481.5,3481.4,2.8724]
[1718751306514,3.60516796,3481.5,3481.2,2.87253]
[1718751306808,3.60516796,3481.5,3481.3,2.87248]
[1718751309185,3.60516796,3481.5,3481.1,2.87264]
[1718751309186,1.20306796,3481.4,3481.2,2.87256]
[1718751310688,1.20306796,3481.4,3481.3,2.87249]
[1718751312411,1.20306796,3481.4,3481.2,2.87256]
[1718751313194,1.20306796,3481.4,3481.3,0.09995384]
[1718751313389,4.40324162,3481.5,3481.2,2.87256]
[1718751313597,1.20270225,3481.4,3481.2,2.87256]
[1718751314290,1.20270225,3481.3,3481.2,2.87256]
[1718751314487,1.20270225,3481.3,3480.7,2.87292]
[1718751314682,6.55513225,3481.2,3480.9,2.87279]
[1718751315099,2.87271,3481.1,3480.8,2.87288]
[1718751315299,6.55513225,3481.2,3480.7,2.87296]
[1718751315613,1.20270225,3481.1,3480.7,2.87296]
[1718751316533,1.20270225,3481.1,3481.0,2.87273]
[1718751316736,3.68250225,3481.2,3481.1,2.87265]
[1718751318807,2.4798,3481.2,3481.0,2.87271]
[1718751319006,3.68338835,3481.2,3481.0,2.87271]
[1718751319221,1.20358835,3481.1,3481.0,2.87271]
[1718751319807,1.20358835,3481.1,3480.3,2.87325]
[1718751320144,6.85641042,3481.2,3480.9,2.87275]
[1718751320145,1.20358835,3481.0,3480.9,2.87275]
[1718751320445,5.35243,3481.2,3480.9,2.87275]
[1718751320446,1.50512039,3481.1,3480.9,2.87275]
[1718751322120,1.50512039,3481.1,3481.0,8.61819]
[1718751322315,1.50512039,3481.1,3481.0,6.691479]
[1718751322529,3.59324222,3481.2,3481.1,2.87265]
[1718751322711,3.59324197,3481.2,3481.1,2.87265]
[1718751322913,4.17625362,3481.2,3481.1,2.87265]
[1718751328112,4.17625362,3481.2,3481.1,2.97256061]
[1718751328726,2.08812158,3481.2,3481.1,2.97256061]
[1718751328949,4.17626332,3481.2,3481.1,2.97256061]
[1718751329621,2.08814174,3481.2,3481.1,2.97256061]
[1718751329862,4.17627217,3481.2,3481.1,2.97256061]
[1718751330257,7.04884217,3481.2,3481.1,0.09991061]
[1718751330439,14.19551451,3481.2,3481.1,0.09991061]
[1718751330637,2.87268,3481.1,3480.8,2.87289]
[1718751330847,1.50756666,3480.9,3480.8,2.87289]
[1718751331160,3.59569709,3480.9,3480.8,2.87289]
[1718751331357,5.68388541,3480.9,3480.8,2.87289]
[1718751331664,3.59569709,3480.9,3480.8,2.87289]
[1718751332333,6.46851709,3480.9,3480.4,2.87319]
[1718751332560,1.20614488,3480.7,3480.4,4.289845]
[1718751332728,1.20614488,3480.7,3480.5,2.87307]
[1718751333223,4.38048666,3480.8,3480.5,2.87307]
[1718751333563,3.59577507,3480.7,3480.5,2.87307]
[1718751333723,3.59616391,3480.6,3480.5,2.87307]
[1718751333925,3.59634796,3480.6,3480.5,2.87307]
[1718751338757,2.87315,3480.5,3479.5,3.1642536]
[1718751338963,1.20631832,3480.1,3479.9,0.842]